fUSD/lending_fUSD_20260123
["ID","MTS","AMOUNT","RATE_DAILY","PERIOD"]
[403134364,1769183286780,500.0,0.00013337,2]
[403134365,1769183286905,200.3515194,0.00013337,2]
[403134366,1769183287017,299.6484806,0.00013337,2]
[403134367,1769183287241,500.0,0.00013337,2]
[403134368,1769183287377,500.0,0.00013337,2]
[403134369,1769183287516,500.0,0.00013337,2]
[403134370,1769183287655,500.0,0.00013337,2]
[403134371,1769183287787,500.0,0.00013337,2]
[403134372,1769183288005,500.0,0.00013337,2]
[403134373,1769183288211,273.58340242,0.00013238,2]
[403134374,1769183300715,636.0,0.00013337,2]
[403134375,1769183324323,5790.77811698,0.00013238,2]
[403134376,1769183324413,10000.01,0.00013238,2]
[403134377,1769183324504,10000.01,0.00013238,2]
[403134378,1769183324588,10000.01,0.00013238,2]
[403134379,1769183324673,10000.01,0.00013238,2]
[403134380,1769183324760,10000.01,0.00013238,2]
[403134381,1769183325093,10000.01,0.00013238,2]
[403134382,1769183325178,10000.01,0.00013238,2]
[403134383,1769183325272,10000.01,0.00013238,2]
[403134384,1769183325356,10000.01,0.00013238,2]
[403134385,1769183345287,-300.0,0.00013237,2]
[403134386,1769183371817,1922.88553989,0.00013236,2]
[403134387,1769183375811,3439.31532127,0.00013236,2]
[403134388,1769183397827,4037.80913884,0.00013138,2]
[403134389,1769183397896,4962.41105649,0.00013138,2]
[403134390,1769183401372,1200.0,0.00013237,2]
[403134391,1769183401832,300.0,0.00013237,2]
[403134392,1769183419359,-904209.13188302,0.00013238,2]
[403134393,1769183419388,-20616.2221,0.00013238,2]
[403134394,1769183419417,-2500.0,0.00013238,2]
[403134397,1769183431632,-250.0,0.00013287,2]
[403134398,1769183431644,-288.39856087,0.00013336,2]
[403134399,1769183432528,-408.14143913,0.00013336,2]
[403134400,1769183432539,-500.0,0.00013337,2]
[403134401,1769183432550,-209.12340496,0.00013337,2]
[403134402,1769183432560,-2616.6156,0.00013338,2]
[403134403,1769183432572,-33244.7258,0.00013338,2]
[403134404,1769183432584,-1000.0,0.00013338,2]
[403134405,1769183432595,-209.80139525,0.00013338,2]
[403134406,1769183432606,-250.0,0.00013357,2]
[403134407,1769183432617,-1002.10968086,0.00013537,2]
[403134408,1769183432628,-500.0,0.00013537,2]
[403134409,1769183432638,-696.54,0.0001361,2]
[403134410,1769183432649,-9000.22019524,0.00013667,2]
[403134411,1769183432660,-500.57040578,0.00013698,2]
[403134412,1769183432670,-500.0,0.00013698,2]
[403134413,1769183432681,-500.0,0.00013698,2]
[403134414,1769183432692,-500.0,0.00013698,2]
[403134415,1769183432703,-500.0,0.00013698,2]
[403134416,1769183432713,-500.0,0.00013698,2]
[403134417,1769183432727,-500.0,0.00013698,2]
[403134418,1769183432737,-500.0,0.00013698,2]
[403134419,1769183432748,-500.0,0.00013698,2]
[403134420,1769183432758,-500.0,0.00013698,2]
[403134421,1769183432769,-500.0,0.00013698,2]
[403134422,1769183432779,-500.0,0.00013698,2]
[403134423,1769183432791,-500.0,0.00013698,2]
[403134424,1769183432802,-500.0,0.00013698,2]
[403134425,1769183432812,-500.0,0.00013698,2]
[403134426,1769183432823,-500.0,0.00013698,2]
[403134427,1769183432834,-500.0,0.00013698,2]
[403134428,1769183432843,-500.0,0.00013698,2]
[403134429,1769183432852,-385.18354163,0.00013698,2]
[403134430,1769183432862,-355.74855515,0.00013698,2]
[403134431,1769183432872,-500.0,0.00013698,2]
[403134432,1769183432881,-502.09877135,0.00013698,2]
[403134433,1769183432891,-500.0,0.00013698,2]
[403134434,1769183432903,-500.0,0.00013698,2]
[403134435,1769183432913,-500.0,0.00013698,2]
[403134436,1769183432924,-500.0,0.00013698,2]
[403134437,1769183432935,-500.0,0.00013698,2]
[403134438,1769183432946,-500.0,0.00013698,2]
[403134439,1769183432957,-368.60456524,0.00013698,2]
[403134440,1769183432967,-500.0,0.00013698,2]
[403134441,1769183432981,-327.49083589,0.00013698,2]
[403134442,1769183432992,-540.84751625,0.00013698,2]
[403134443,1769183433003,-500.0,0.00013698,2]
[403134444,1769183433013,-500.0,0.00013698,2]
[403134445,1769183433024,-500.0,0.00013698,2]
[403134446,1769183433035,-500.0,0.00013698,2]
[403134447,1769183433046,-500.0,0.00013698,2]
[403134448,1769183433057,-500.0,0.00013698,2]
[403134449,1769183433067,-500.0,0.00013698,2]
[403134450,1769183433078,-500.0,0.00013698,2]
[403134451,1769183433088,-500.0,0.00013698,2]
[403134452,1769183433099,-500.0,0.00013698,2]
[403134453,1769183433110,-500.0,0.00013698,2]
[403134454,1769183433120,-500.0,0.00013698,2]
[403134455,1769183433131,-500.0,0.00013698,2]
[403134456,1769183433141,-500.0,0.00013698,2]
[403134457,1769183433151,-500.0,0.00013698,2]
[403134458,1769183433167,-500.0,0.00013698,2]
[403134459,1769183433178,-500.0,0.00013698,2]
[403134460,1769183433189,-502.33213411,0.00013698,2]
[403134461,1769183433201,-500.0,0.00013698,2]
[403134462,1769183433212,-500.0,0.00013698,2]
[403134463,1769183433227,-500.0,0.00013698,2]
[403134464,1769183433239,-500.0,0.00013698,2]
[403134465,1769183433250,-500.0,0.00013698,2]
[403134466,1769183433261,-500.0,0.00013698,2]
[403134467,1769183433271,-500.0,0.00013698,2]
[403134468,1769183433282,-500.0,0.00013698,2]
[403134469,1769183433292,-500.0,0.00013698,2]
[403134470,1769183433303,-500.0,0.00013698,2]
[403134471,1769183433314,-500.0,0.00013698,2]
[403134472,1769183433325,-192.65453673,0.00013698,2]
[403134473,1769183433335,-875.49,0.00013699,2]
[403134474,1769183433346,-2146.37,0.000137,2]
[403134475,1769183433357,-2146.37,0.000137,2]
[403134476,1769183433367,-2146.37,0.000137,2]
[403134477,1769183433378,-2146.37,0.000137,2]
[403134478,1769183433388,-2146.37,0.000137,2]
[403134479,1769183433399,-2286.54,0.000137,2]
[403134480,1769183433410,-2286.54,0.000137,2]
[403134481,1769183433421,-3439.31532126,0.00013754,2]
[403134482,1769183433432,-500.0,0.00013811,2]
[403134483,1769183433442,-500.0,0.00013842,2]
[403134484,1769183433452,-696.54,0.00013884,2]
[403134485,1769183433463,-1922.88553985,0.00013902,2]
[403134486,1769183433475,-166.66,0.00013916,2]
[403134487,1769183433486,-33503.99312414,0.0001398,2]
[403134488,1769183433496,-228.0,0.00014084,2]
[403134489,1769183433507,-500.0,0.00014085,2]
[403134490,1769183433518,-498.0,0.00014112,2]
[403134491,1769183433529,-1340.0,0.0001414,2]
[403134492,1769183433544,-231.0,0.0001414,2]
[403134493,1769183433555,-251.0,0.00014148,2]
[403134494,1769183433571,-696.54,0.00014158,2]
[403134495,1769183433581,-1730.0,0.00014168,2]
[403134496,1769183433592,-263.0,0.00014168,2]
[403134497,1769183433603,-343.0,0.00014176,2]
[403134498,1769183433613,-9000.22019524,0.00014196,2]
[403134499,1769183433624,-972.0,0.00014197,2]
[403134500,1769183433634,-232.0,0.00014197,2]
[403134501,1769183433645,-399.0,0.00014205,2]
[403134502,1769183433656,-166.66,0.00014209,2]
[403134503,1769183433666,-1746.0,0.00014225,2]
[403134504,1769183433676,-319.0,0.00014225,2]
[403134505,1769183433687,-255.0,0.00014233,2]
[403134506,1769183433698,-1821.0,0.00014236,2]
[403134507,1769183433709,-1040.0,0.00014253,2]
[403134508,1769183433720,-287.0,0.00014253,2]
[403134509,1769183433735,-163.0,0.00014261,2]
[403134510,1769183433746,-1866.0,0.00014265,2]
[403134511,1769183433756,-3439.31532126,0.00014272,2]
[403134512,1769183433766,-1834.0,0.00014293,2]
[403134513,1769183433776,-844.0,0.00014322,2]
[403134514,1769183433786,-914.0,0.0001435,2]
[403134515,1769183433797,-500.0,0.00014359,2]
[403134516,1769183433807,-1775.0,0.00014378,2]
[403134517,1769183433818,-696.54,0.00014432,2]
[403134518,1769183433829,-255.0,0.00014443,2]
[403134519,1769183433839,-166.66,0.00014502,2]
[403134520,1769183433851,-420.0,0.00014513,2]
[403134521,1769183433862,-2167.15,0.00014523,2]
[403134522,1769183433873,-1680.0,0.0001456,2]
[403134523,1769183433883,-195.0,0.00014561,2]
[403134524,1769183433894,-250.0,0.00014561,2]
[403134525,1769183433905,-1922.88553985,0.00014569,2]
[403134526,1769183433916,-2483.97,0.00014606,2]
[403134527,1769183433926,-3922.93,0.00014617,2]
[403134528,1769183433937,-195.0,0.00014671,2]
[403134529,1769183433948,-2279.36,0.00014697,2]
[403134530,1769183433961,-696.54,0.00014706,2]
[403134531,1769183433972,-9000.22019524,0.00014725,2]
[403134532,1769183433985,-1028.28557065,0.00014763,2]
[403134533,1769183433997,-3439.31532126,0.00014791,2]
[403134534,1769183434008,-166.66,0.00014795,2]
[403134535,1769183434019,-7967.67,0.00014831,2]
[403134536,1769183434033,-5444.42,0.00014851,2]
[403134537,1769183434044,-151.0,0.00014939,2]
[403134538,1769183434057,-166.66,0.00015088,2]
[403134539,1769183434069,-346.0,0.000151,5]
[403134540,1769183434593,-1922.88553985,0.00015235,2]
[403134541,1769183434620,-9000.22019524,0.00015254,2]
[403134542,1769183434640,-4335.5798801,0.00015294,5]
[403134543,1769183434656,-3439.31532126,0.00015309,2]
[403134544,1769183434665,-166.66,0.00015381,2]
[403134545,1769183434674,-330.71081277,0.00015415,2]
[403134546,1769183434684,-175.19,0.00015439,2]
[403134547,1769183434694,-150.0,0.00015578,2]
[403134548,1769183434704,-9000.22019524,0.00015784,2]
[403134549,1769183434714,-500.0,0.00015827,2]
[403134550,1769183434726,-500.0,0.00015827,2]
[403134551,1769183434736,-3439.31532126,0.00015827,2]
[403134552,1769183434748,-1922.88553985,0.00015901,2]
[403134553,1769183434758,-206.0,0.00015912,2]
[403134554,1769183434768,-2351.0,0.00016016,2]
[403134555,1769183434778,-209.23,0.00016209,2]
[403134556,1769183434788,-9000.22019524,0.00016313,2]
[403134557,1769183434799,-3439.31532126,0.00016345,2]
[403134558,1769183434808,-500.0,0.00016438,2]
[403134559,1769183434818,-500.0,0.00016438,2]
[403134560,1769183434828,-500.0,0.00016438,2]
[403134561,1769183434837,-500.0,0.00016438,2]
[403134562,1769183434847,-500.0,0.00016438,2]
[403134563,1769183434858,-500.0,0.00016438,2]
[403134564,1769183434868,-500.0,0.00016438,2]
[403134565,1769183434878,-500.0,0.00016438,2]
[403134566,1769183434890,-500.0,0.00016438,2]
[403134567,1769183434899,-500.0,0.00016438,2]
[403134568,1769183434909,-500.0,0.00016438,2]
[403134569,1769183434920,-500.0,0.00016438,2]
[403134570,1769183434930,-500.0,0.00016438,2]
[403134571,1769183434940,-454.51809964,0.00016438,2]
[403134572,1769183434949,-500.0,0.00016438,2]
[403134573,1769183434959,-500.0,0.00016438,2]
[403134574,1769183434969,-500.0,0.00016438,2]
[403134575,1769183434980,-500.0,0.00016438,2]
[403134576,1769183434990,-500.0,0.00016438,2]
[403134577,1769183434999,-500.0,0.00016438,2]
[403134578,1769183435008,-500.0,0.00016438,2]
[403134579,1769183435018,-500.0,0.00016438,2]
[403134580,1769183435028,-500.0,0.00016438,2]
[403134581,1769183435037,-500.0,0.00016438,2]
[403134582,1769183435047,-500.0,0.00016438,2]
[403134583,1769183435056,-250.0,0.00016438,2]
[403134584,1769183435066,-151.0,0.00016438,2]
[403134585,1769183435075,-1922.88553985,0.00016567,2]
[403134586,1769183435084,-291.242939,0.00016675,2]
[403134587,1769183435094,-3439.31532126,0.00016864,2]
[403134588,1769183435103,-545.04649337,0.00017101,2]
[403134589,1769183435113,-447.92866097,0.00017101,2]
[403134590,1769183435123,-431324.5490665,0.00017102,2]
[403134591,1769183435133,-220.81482239,0.00017212,2]
[403134592,1769183435142,-389.54352071,0.00017212,2]
[403134593,1769183435152,-582.73380992,0.00017212,2]
[403134594,1769183435161,-788.4558,0.00017212,2]
[403134595,1769183435171,-1922.88553985,0.00017234,2]
[403134596,1769183435181,-299.11729807,0.00017256,2]
[403134597,1769183435190,-151.0,0.00017256,2]
[403134598,1769183435200,-151.0,0.00017256,2]
[403134599,1769183435210,-151.0,0.00017256,2]
[403134600,1769183435221,-151.0,0.00017256,2]
[403134601,1769183435232,-151.0,0.00017256,2]
[403134602,1769183435241,-151.0,0.00017256,2]
[403134603,1769183435251,-151.0,0.00017256,2]
[403134604,1769183435261,-151.0,0.00017256,2]
[403134605,1769183435271,-151.0,0.00017256,2]
[403134606,1769183435280,-151.0,0.00017256,2]
[403134607,1769183435290,-151.0,0.00017256,2]
[403134608,1769183435300,-3439.31532126,0.00017382,2]
[403134609,1769183435310,-158.65816027,0.0001747,2]
[403134610,1769183435319,-250.42435544,0.00017491,2]
[403134611,1769183435329,-330.71081277,0.00017592,2]
[403134612,1769183435339,-387.0,0.00017618,2]
[403134613,1769183435348,-10000.0,0.000179,2]
[403134614,1769183435358,-4526.44750006,0.000179,2]
[403134615,1769183435367,-157.10445278,0.000179,2]
[403134616,1769183435378,-1922.88553985,0.000179,2]
[403134617,1769183435387,-3439.31532126,0.000179,2]
[403134618,1769183435397,-287.0,0.00017985,2]
[403134619,1769183435406,-151.0,0.00017997,2]
[403134620,1769183435416,-150.0,0.00017999,2]
[403134621,1769183435426,-150.0,0.00017999,2]
[403134622,1769183435436,-222.43966882,0.00017999,2]
[403134623,1769183435446,-77724.79553808,0.00018,2]
[403134624,1769183435461,-827.08473548,0.00018,2]
[403134625,1769183435483,-482.13,0.00018,2]
[403134626,1769183435494,-36308.80088429,0.00018,2]
[403134627,1769183435516,-2389.94928522,0.00018,2]
[403134628,1769183435529,-192316.08377464,0.00018,2]
[403134629,1769183435540,-1032.57945364,0.00018,2]
[403134630,1769183435552,-3954.798,0.00018,2]
[403134631,1769183435564,-540.54142778,0.00018,2]
[403134632,1769183435576,-646.26906385,0.00018,2]
[403134633,1769183435587,-787.27893922,0.00018,2]
[403134634,1769183435598,-83002.87822374,0.00018,2]
[403134635,1769183435609,-1309.68764366,0.00018,2]
[403134636,1769183435621,-448.54201431,0.00018,2]
[403134639,1769183437816,-5972.68705834,0.00016842,2]
[403134640,1769183437827,-670.10000021,0.00016842,2]
[403134641,1769183437863,-1004.12267882,0.00016842,2]
[403134642,1769183437875,-1353.31045787,0.00016842,2]
[403134643,1769183437889,-9000.22019524,0.00017371,2]
[403134644,1769183437899,-3806233.85407267,0.00018,2]
[403134645,1769183437909,-150.0,0.00018,2]
[403134646,1769183437918,-2536.75174456,0.00018,2]
[403134647,1769183437928,-150.0,0.00018,2]
[403134648,1769183437938,-4384.97455068,0.00018,2]
[403134649,1769183437947,-150.0,0.00018,2]
[403134650,1769183437957,-454704.16261548,0.00018,2]
[403134651,1769183437966,-3181.8052028,0.00018,2]
[403134652,1769183437979,-761737.14796706,0.00018,2]
[403134653,1769183438001,-2344.66072333,0.00018,2]
[403134654,1769183438015,-471.87366345,0.00018,2]
[403134655,1769183438031,-14258.999999,0.00018,2]
[403134760,1769183439800,-360.11324534,0.00018,2]
[403134761,1769183439812,-6681.8722495,0.00018,2]
[403134762,1769183439824,-3030.275,0.00018,2]
[403134763,1769183439876,-3013.09883196,0.00018,2]
[403134764,1769183439887,-3816.26585088,0.00018,2]
[403134765,1769183440089,-15326.61639768,0.00018,2]
[403134766,1769183440101,-447.1571751,0.00018,2]
[403134767,1769183440112,-303.94,0.00018,2]
[403134768,1769183440266,-22989.30025605,0.00018,2]
[403134769,1769183440278,-671.13398646,0.00018,2]
[403134770,1769183440291,-456.49160102,0.00018,2]
[403134771,1769183440332,-944.11930094,0.00018,2]
[403134772,1769183440343,-410.41697642,0.00018,2]
[403134786,1769183445669,-151.0,0.00016994,2]
[403134787,1769183445679,-267.9359996,0.000179,2]
[403134788,1769183445690,-279.23080524,0.000179,2]
[403134789,1769183445700,-6576.66986703,0.000179,2]
[403134790,1769183445711,-908.811586,0.000179,2]
[403134791,1769183445722,-1514.73874221,0.000179,2]
[403134792,1769183445731,-65142.91036052,0.00018,2]
[403134793,1769183445742,-25186.3396482,0.00018,2]
[403134794,1769183445754,-34100.702985,0.00018,2]
[403134796,1769183445765,-44769.83565159,0.00018,2]
[403134800,1769183445787,-49.19888151,0.00018,2]
[403134802,1769183445798,-92249.40942863,0.00018,2]
[403134804,1769183445808,-583856.78017016,0.00018,2]
[403134805,1769183445819,-1207.04228254,0.00018,2]
[403134806,1769183445849,-655.3938732,0.00018,2]
[403134819,1769183446009,-746.36498469,0.00018,2]
[403134821,1769183446020,-1511799.51750048,0.00018,2]
[403135224,1769183460483,10000.01,0.00013238,2]
[403135225,1769183460571,10000.01,0.00013238,2]
[403135226,1769183460658,10000.01,0.00013238,2]
[403135227,1769183460741,3244.6958,0.00013238,2]
[403135228,1769183476096,6755.3142,0.00013238,2]
[403135229,1769183476197,10000.01,0.00013238,2]
[403135230,1769183476294,10000.01,0.00013238,2]
[403135231,1769183476396,10000.01,0.00013238,2]
[403135232,1769183476498,10000.01,0.00013238,2]
[403135233,1769183476602,10000.01,0.00013238,2]
[403135234,1769183476704,10000.01,0.00013238,2]
[403135235,1769183476804,10000.01,0.00013238,2]
[403135236,1769183476903,10000.01,0.00013238,2]
[403135237,1769183477005,10000.01,0.00013238,2]
[403135238,1769183477043,903244.5958,0.00013238,2]
[403135239,1769183492428,-435.12436627,0.00013336,2]
[403135240,1769183492517,-500.0,0.00013336,2]
[403135241,1769183492601,-188.2522023,0.00013336,2]
[403135242,1769183492692,-500.0,0.00013336,2]
[403135243,1769183492798,-371.2002617,0.00013336,2]
[403135244,1769183492888,-215.18951712,0.00013697,2]
[403135245,1769183492978,-496.38638348,0.00013697,2]
[403135246,1769183493072,-500.0,0.00013698,2]
[403135247,1769183493165,-500.0,0.00013698,2]
[403135248,1769183493261,-292.31386135,0.00013698,2]
[403135249,1769183493593,500.0,0.00013698,2]
[403135250,1769183493986,500.0,0.00013698,2]
[403135251,1769183494471,500.0,0.00013698,2]
[403135252,1769183495114,500.0,0.00013698,2]
[403135253,1769183495266,3.07681556,0.00013238,2]
[403135254,1769183495364,996.92318444,0.00013238,2]
[403135255,1769183499417,500.00000001,0.00013336,2]
[403135256,1769183509402,2500.0,0.00013238,2]
[403135257,1769183515249,500.0,0.00013698,2]
[403135258,1769183515490,500.0,0.00013698,2]
[403135259,1769183515745,500.0,0.00013698,2]
[403135260,1769183549353,500.0,0.00013698,2]
[403135261,1769183549628,500.0,0.00013698,2]
[403135262,1769183549982,500.0,0.00013698,2]
[403135263,1769183550160,500.0,0.00013698,2]
[403135264,1769183603708,500.0,0.00013138,2]
[403135265,1769183609887,7500.01,0.00013138,2]
[403135266,1769183609965,10000.01,0.00013138,2]
[403135267,1769183610039,10000.01,0.00013138,2]
[403135268,1769183610109,3483.4914,0.00013138,2]
[403135269,1769183625389,10000.01,0.00013138,2]
[403135270,1769183625475,10000.01,0.00013138,2]
[403135271,1769183625557,10000.01,0.00013138,2]
[403135272,1769183625594,169430.05021698,0.00013138,2]
[403135273,1769183625631,800569.91978302,0.00013138,2]
[403135274,1769183640348,1000.0,0.00013138,2]
[403135275,1769183658954,2500.0,0.00013138,2]
[403135276,1769183672020,589.64888391,0.00013698,2]
[403135277,1769183779117,500.0,0.00013698,2]
[403135278,1769183779809,500.0,0.00013698,2]
[403135279,1769183780041,500.0,0.00013698,2]
[403135282,1769183871836,413.38750159,0.00013698,2]
[403135284,1769184038335,3110.9,0.0001591,2]
[403135297,1769184063492,151.0,0.0001591,2]
[403135298,1769184064858,212.85475453,0.0001591,2]
[403135299,1769184119891,200.0,0.00015741,2]
[403135300,1769184199424,435.89165436,0.00013698,2]
[403135301,1769184223398,464.2,0.00015718,2]
[403135316,1769184264068,177.8296586,0.00015999,2]
[403135317,1769184271886,530.71,0.00013698,2]
[403135318,1769184292039,3423.01,0.00015748,2]
[403135319,1769184357687,1500.0,0.0001584,2]
[403135321,1769184488828,291.1384,0.00015997,2]
[403135322,1769184554135,-509.8077318,0.00016099,2]
[403135323,1769184554157,-151.0,0.00016117,2]
[403135324,1769184554179,-151.0,0.00016117,2]
[403135325,1769184554201,-151.0,0.00016117,2]
[403135326,1769184554222,-151.0,0.00016119,2]
[403135327,1769184554241,-212.06874841,0.00016198,2]
[403135328,1769184554262,-212.0687484,0.00016238,2]
[403135329,1769184554284,-1136.63368227,0.00016284,2]
[403135330,1769184554305,-1200.0,0.00016298,2]
[403135331,1769184554324,-1154.0,0.00016298,2]
[403135332,1769184554345,-297.23745912,0.00016299,2]
[403135333,1769184566152,3240.0,0.00015774,2]
[403135334,1769184594584,164.968212,0.00015636,2]
[403135335,1769184619628,500.0,0.00015683,2]
[403135347,1769184631785,-151.0,0.00016123,2]
[403135349,1769184631794,-285.0,0.00016123,2]
[403135351,1769184631803,-151.0,0.00016123,2]
[403135352,1769184631813,-151.0,0.00016123,2]
[403135353,1769184631822,-151.0,0.00016124,2]
[403135354,1769184631832,-2595.13133923,0.00016299,2]
[403135355,1769184631851,-1148.78266955,0.00016299,2]
[403135356,1769184631920,-2185.5885321,0.00016299,2]
[403135357,1769184631929,-200.0,0.00016329,2]
[403135358,1769184631939,-550.0,0.00016329,2]
[403135359,1769184631949,-1200.0,0.00016329,2]
[403135360,1769184631962,-300.0,0.00016329,2]
[403135361,1769184631972,-202.31671679,0.0001633,2]
[403135362,1769184631982,-200.0,0.0001633,2]
[403135363,1769184631991,-500.0,0.0001633,2]
[403135364,1769184632001,-341.3241557,0.0001633,2]
[403135365,1769184632010,-500.0,0.0001633,2]
[403135366,1769184632019,-151.0,0.0001633,2]
[403135367,1769184632029,-151.0,0.0001633,2]
[403135368,1769184632038,-500.0,0.0001633,2]
[403135369,1769184632048,-151.0,0.0001633,2]
[403135370,1769184632057,-151.0,0.0001633,2]
[403135371,1769184632067,-500.0,0.0001633,2]
[403135372,1769184632077,-151.0,0.0001633,2]
[403135373,1769184632087,-151.0,0.0001633,2]
[403135374,1769184632097,-500.0,0.0001633,2]
[403135375,1769184632106,-151.0,0.0001633,2]
[403135376,1769184632115,-278.80498024,0.0001633,2]
[403135377,1769184632124,-500.0,0.0001633,2]
[403135378,1769184632134,-151.0,0.0001633,2]
[403135379,1769184632143,-500.0,0.0001633,2]
[403135380,1769184632156,-151.0,0.0001633,2]
[403135381,1769184632165,-500.0,0.0001633,2]
[403135382,1769184632175,-151.0,0.0001633,2]
[403135383,1769184632184,-151.0,0.0001633,2]
[403135384,1769184632193,-500.0,0.0001633,2]
[403135385,1769184632203,-151.0,0.0001633,2]
[403135386,1769184632212,-500.0,0.0001633,2]
[403135387,1769184632221,-151.0,0.0001633,2]
[403135388,1769184632231,-500.0,0.0001633,2]
[403135389,1769184632241,-151.0,0.0001633,2]
[403135390,1769184632250,-500.0,0.0001633,2]
[403135391,1769184632260,-437.92737349,0.00016338,2]
[403135392,1769184632269,-201.17465973,0.00016338,2]
[403135393,1769184632279,-500.0,0.00016338,2]
[403135394,1769184632288,-1203.21792498,0.00016338,2]
[403135395,1769184632297,-1203.21792498,0.00016338,2]
[403135396,1769184632307,-557.59007768,0.00016338,2]
[403135397,1769184632317,-108.00249503,0.00016338,2]
[403135398,1769184632329,-398.42466809,0.00016338,2]
[403135400,1769184637831,-659.93455117,0.00016338,2]
[403135401,1769184637880,-36.85621069,0.00016338,2]
[403135402,1769184637890,-1203.21792498,0.00016338,2]
[403135403,1769184637900,-1167.08783468,0.00016338,2]
[403135404,1769184637912,-36.1300903,0.00016338,2]
[403135405,1769184637924,-1203.21792498,0.00016338,2]
[403135406,1769184637934,-274.53723955,0.00016338,2]
[403135407,1769184637946,-928.68068543,0.00016338,2]
[403135408,1769184637956,-1203.21792498,0.00016338,2]
[403135409,1769184637966,-1203.21792498,0.00016338,2]
[403135410,1769184637976,-1203.21792498,0.00016338,2]
[403135411,1769184637985,-631.74873406,0.00016338,2]
[403135412,1769184637999,-571.46919092,0.00016338,2]
[403135413,1769184638009,-1203.21792498,0.00016338,2]
[403135414,1769184638019,-278.96247392,0.00016338,2]
[403135415,1769184638031,-924.25545106,0.00016338,2]
[403135416,1769184638041,-1203.21792498,0.00016338,2]
[403135417,1769184638051,-1203.21792498,0.00016338,2]
[403135418,1769184638061,-1203.21792498,0.00016338,2]
[403135419,1769184638071,-1203.21792498,0.00016338,2]
[403135420,1769184638082,-1203.21792498,0.00016338,2]
[403135421,1769184638092,-1203.21792498,0.00016338,2]
[403135422,1769184638102,-1203.21792498,0.00016338,2]
[403135423,1769184638112,-1203.21792498,0.00016338,2]
[403135424,1769184638122,-1203.21792498,0.00016338,2]
[403135425,1769184638132,-1203.21792498,0.00016338,2]
[403135426,1769184638142,-1203.21792498,0.00016338,2]
[403135427,1769184638151,-1203.21792498,0.00016338,2]
[403135428,1769184638162,-1203.21792498,0.00016338,2]
[403135429,1769184638171,-1203.21792498,0.00016338,2]
[403135430,1769184638181,-1203.21792498,0.00016338,2]
[403135432,1769184638191,-1203.21792498,0.00016338,2]
[403135433,1769184638201,-1203.21792498,0.00016338,2]
[403135434,1769184638211,-1203.21792498,0.00016338,2]
[403135435,1769184638221,-1203.21792498,0.00016338,2]
[403135437,1769184638231,-1203.21792498,0.00016338,2]
[403135439,1769184638241,-1203.21792498,0.00016338,2]
[403135441,1769184638250,-996.5480675,0.00016338,2]
[403135443,1769184638262,-206.66985748,0.00016338,2]
[403135445,1769184638272,-1203.21792498,0.00016338,2]
[403135447,1769184638282,-1203.21792498,0.00016338,2]
[403135449,1769184638292,-1203.21792498,0.00016338,2]
[403135451,1769184638301,-1203.21792498,0.00016338,2]
[403135453,1769184638311,-1203.21792498,0.00016338,2]
[403135455,1769184638321,-1203.21792498,0.00016338,2]
[403135457,1769184638330,-1203.21792498,0.00016338,2]
[403135459,1769184638340,-1203.21792498,0.00016338,2]
[403135462,1769184638349,-1203.21792498,0.00016338,2]
[403135464,1769184638359,-1203.21792498,0.00016338,2]
[403135467,1769184638369,-1203.21792498,0.00016338,2]